bitfinex/quotes_ETHUSD_20251019
["timestamp","ask_amount","ask_price","bid_price","bid_amount"]
[1760896729660,0.001,3998.7,3998.4,0.002]
[1760896729857,0.001,3998.7,3998.5,2.50091304]
[1760896730882,0.001,3998.7,3998.4,2.50298944]
[1760896731087,0.001,3998.7,3998.5,2.50092954]
[1760896732682,0.001,3998.7,3998.6,2.5008753]
[1760896733063,0.001,3998.7,3998.5,2.5009216]
[1760896735567,0.001,3998.7,3998.6,2.5008753]
[1760896735868,0.001,3998.7,3998.6,6.67370374]
[1760896736068,0.001,3998.7,3998.6,6.77349499]
[1760896739803,0.001,3998.7,3998.6,12.91827171]
[1760896740103,0.001,3999.9,3999.7,2.50018751]
[1760896740303,0.001,3999.9,3999.7,12.17178298]
[1760896740501,0.001,3999.9,3999.7,12.62218298]
[1760896740690,0.001,3999.9,3999.7,5.02878972]
[1760896740888,0.001,3999.9,3999.7,8.18078972]
[1760896741091,0.001,3999.9,3999.7,8.08060626]
[1760896744669,0.001,3999.9,3999.7,7.63020626]
[1760896745100,0.001,3999.9,3999.7,5.65218751]
[1760896745299,0.001,3999.9,3999.7,6.08378751]
[1760896749073,0.001,3999.9,3999.7,5.65218751]
[1760896749903,0.001,3999.9,3999.7,5.77698751]
[1760896754397,0.001,3999.9,3999.7,6.22648751]
[1760896754593,0.001,3999.9,3999.7,7.09916597]
[1760896756089,0.001,3999.9,3999.7,6.64966597]
[1760896757114,0.001,3999.9,3999.7,7.09916597]
[1760896760383,0.001,3999.9,3999.7,6.64966597]
[1760896763203,0.001,3999.9,3999.7,5.77698751]
[1760896763406,0.171,3999.9,3999.7,5.77698751]
[1760896767798,0.001,3999.9,3999.7,5.77698751]
[1760896770587,0.171,3999.9,3999.7,3.2768]
[1760896770783,0.1036,3999.8,3999.7,3.2768]
[1760896771021,0.1036,3999.8,3999.7,5.77698751]
[1760896771419,0.001,3999.8,3999.7,5.77698751]
[1760896776123,0.001,3999.8,3999.7,3.2768]
[1760896776306,0.1036,3999.8,3999.7,3.2768]
[1760896776821,0.001,3999.8,3999.7,3.2768]
[1760896777024,0.001,3999.8,3999.7,5.77698751]
[1760896786938,0.001,3999.8,3999.7,3.152]
[1760896787142,0.001,3999.8,3999.7,5.65218751]
[1760896792443,0.001,3999.8,3999.7,3.152]
[1760896792624,0.1,3999.8,3999.7,3.152]
[1760896795746,0.001,3999.8,3999.7,3.152]
[1760896800272,0.001,3999.8,3999.7,6.08038751]
[1760896801268,0.001,3999.8,3999.7,5.65218751]
[1760896801794,0.001,3999.8,3999.7,6.08038751]
[1760896802077,0.001,3999.8,3999.7,7.07593686]
[1760896803875,0.001,3999.8,3999.7,7.70953686]
[1760896804044,0.001,3999.8,3999.7,9.43753686]
[1760896804546,1e-08,4000.2,4000.1,3.1335375]
[1760896804761,1e-08,4000.2,4000.1,12.93983807]
[1760896804943,1e-08,4000.2,4000.1,15.07444501]
[1760896807692,0.099,4002.5,4000.4,0.6336]
[1760896807890,0.004,4003.3,4000.7,9.54666377]
[1760896808093,0.099,4002.3,4000.7,9.54666377]
[1760896808483,0.099,4002.3,4000.7,9.99466377]
[1760896808687,0.0993,4001.7,4000.7,11.26918531]
[1760896809386,0.1256,4002.3,4000.7,11.26918531]
[1760896809595,0.2246,4002.3,4000.7,11.26918531]
[1760896809959,0.1256,4002.3,4000.7,11.26918531]
[1760896810165,0.099,4002.1,4000.7,11.26918531]
[1760896810686,0.1256,4002.3,4000.7,11.26918531]
[1760896810982,0.099,4001.8,4000.7,11.26918531]
[1760896811758,0.099,4001.6,4000.7,8.91798531]
[1760896811961,0.099,4001.5,4000.7,8.91798531]
[1760896813364,0.001,4001.7,4000.7,8.45958531]
[1760896813698,0.1,4001.3,4000.7,8.45958531]
[1760896814067,0.1656,4000.9,4000.7,3.77408411]
[1760896814998,0.1,4000.8,4000.5,3.15]
[1760896815162,0.099,4000.7,4000.5,3.15]
[1760896815364,0.099,4000.6,4000.1,2.50191591]
[1760896815563,0.099,4000.5,4000.1,3.152]
[1760896815797,0.001,4000.8,4000.1,3.152]
[1760896815798,0.099,4000.4,4000.1,3.152]
[1760896815972,0.099,4000.3,4000.1,3.152]
[1760896816176,0.099,4000.2,4000.1,3.152]
[1760896816386,0.099,4000.2,4000.1,0.002]
[1760896816592,0.001,4000.8,4000.1,0.002]
[1760896816804,0.001,4000.8,4000.6,2.49958903]
[1760896816998,0.099,4000.7,4000.3,2.49980858]
[1760896817175,0.001,4000.8,4000.3,2.49980858]
[1760896817361,0.099,4000.6,4000.3,2.49980858]
[1760896817567,0.099,4000.5,4000.3,2.49980858]
[1760896817768,0.099,4000.5,4000.4,2.62455002]
[1760896818008,0.1666,4000.8,4000.4,0.1248]
[1760896818179,0.099,4000.7,4000.2,2.66]
[1760896818374,0.099,4000.6,4000.2,5.15987457]
[1760896818577,0.2914,4000.8,4000.2,2.66]
[1760896818778,0.099,4000.7,4000.2,2.66]
[1760896818991,0.2914,4000.8,4000.1,0.1268]
[1760896819179,0.099,4000.6,4000.1,0.1268]
[1760896819380,0.099,4000.5,4000.3,2.49979634]
[1760896819576,0.099,4000.4,4000.1,2.62668769]
[1760896819780,0.2914,4000.8,4000.2,2.499875]
[1760896819781,0.099,4000.3,4000.2,2.499875]
[1760896820194,0.099,4000.3,4000.1,2.62672705]
[1760896820404,0.099,4000.2,4000.1,2.62672705]
[1760896820609,0.099,4000.2,4000.1,0.1268]
[1760896820997,0.099,4000.6,4000.1,0.1268]
[1760896821195,0.099,4000.6,4000.3,2.49976211]
[1760896821403,0.001,4000.8,4000.7,2.49956257]
[1760896824120,0.1653,4000.8,4000.6,3.15]
[1760896824323,0.1003,4000.7,4000.6,5.64961309]
[1760896824689,0.1653,4000.8,4000.6,5.64961309]
[1760896825017,0.2656,4000.8,4000.6,5.64961309]
[1760896825585,0.2656,4000.8,4000.6,3.15]
[1760896826107,0.2656,4000.8,4000.6,5.64961524]
[1760896826306,0.1653,4000.8,4000.7,2.49956257]
[1760896826511,0.001,4000.8,4000.7,2.49956257]
[1760896826906,0.001,4000.8,4000.6,5.64961482]
[1760896827109,0.001,4000.8,4000.7,2.49956257]
[1760896827587,0.001,4000.8,4000.6,3.15]
[1760896828022,0.001,4000.8,4000.6,5.64960576]
[1760896828225,0.001,4000.8,4000.6,3.15]
[1760896828738,0.001,4000.8,4000.6,5.64960271]
[1760896829037,0.001,4000.8,4000.7,2.49956257]
[1760896830000,0.001,4000.8,4000.6,5.64961649]
[1760896830956,0.001,4000.8,4000.4,5.64968818]
[1760896831248,0.001,4000.8,4000.5,2.49966622]
[1760896831450,0.001,4000.8,4000.6,2.62439997]
[1760896832033,0.001,4000.8,4000.7,2.49956257]
[1760896832535,0.001,4000.8,4000.7,2.95796257]
[1760896832698,0.001,4000.8,4000.7,4.22151771]
[1760896833438,0.001,4000.8,4000.7,11.42441577]
[1760896833601,0.001,4000.8,4000.7,11.39942015]
[1760896833933,0.001,4000.8,4000.7,7.49631771]
[1760896835336,0.001,4000.8,4000.7,11.39942015]
[1760896837249,0.001,4000.8,4000.7,7.03791771]
[1760896837553,0.001,4000.8,4000.7,5.77436257]
[1760896838258,0.001,4000.8,4000.7,2.62436257]
[1760896838464,0.001,4000.8,4000.7,5.77436257]
[1760896840940,0.001,4000.8,4000.7,10.11426501]
[1760896841148,0.001,4000.8,4000.7,11.37566015]
[1760896844386,0.001,4000.8,4000.7,10.93886015]
[1760896844674,0.001,4000.8,4000.7,5.77436257]
[1760896853665,0.001,4000.8,4000.7,6.21116257]
[1760896854681,0.001,4000.8,4000.7,5.77436257]
[1760896855597,0.001,4000.8,4000.7,10.11426501]
[1760896857269,0.001,4000.8,4000.7,9.67746501]
[1760896860193,0.001,4000.8,4000.7,10.93906015]
[1760896860359,0.001,4000.8,4000.7,15.27896259]
[1760896860559,0.001,4000.8,4000.7,11.37586015]
[1760896862295,0.001,4000.8,4000.7,15.15416259]
[1760896862458,0.001,4000.8,4000.7,17.51576259]
[1760896865468,0.001,4000.8,4000.7,16.88216259]
[1760896866696,0.001,4000.8,4000.7,17.51576259]
[1760896867464,0.001,4000.8,4000.7,3.76115771]
[1760896867664,0.2261,4000.8,4000.7,2.49956257]
[1760896867892,0.2261,4000.8,4000.7,5.64856257]
[1760896872615,0.2261,4000.8,4000.7,3.149]
[1760896874645,0.2261,4000.8,4000.6,2.50161485]
[1760896874805,0.2251,4000.7,4000.6,2.50161485]
[1760896875440,0.2251,4000.7,4000.6,0.002]
[1760896875840,0.21385883,4000.7,4000.6,0.002]
[1760896876030,0.099,4000.7,4000.6,0.002]
[1760896876436,4.32656257,4000.7,4000.6,0.002]
[1760896877324,8.88185328,4000.7,4000.6,0.002]
[1760896877503,8.86326501,4000.7,4000.6,0.002]
[1760896878039,16.72716801,4000.7,4000.6,0.002]
[1760896878346,14.59462473,4000.7,4000.6,0.002]
[1760896878924,6.89951329,4000.7,4000.6,0.002]
[1760896879107,8.86326501,4000.7,4000.6,0.002]
[1760896881144,0.001,4000.8,4000.6,0.002]
[1760896881724,0.099,4000.7,4000.6,0.002]
[1760896881920,0.001,4000.8,4000.6,2.5016233]
[1760896882648,0.001,4000.8,4000.7,2.49956257]
[1760896883020,0.001,4000.8,4000.7,2.92816257]
[1760896885551,0.001,4000.8,4000.6,2.50160825]
[1760896886633,0.001,4000.8,4000.7,2.49956257]
[1760896887136,0.001,4000.8,4000.7,2.92816257]
[1760896887322,0.001,4000.8,4000.7,3.48362716]
[1760896888255,0.001,4000.8,4000.7,7.3867296]
[1760896888456,0.001,4000.8,4000.7,7.5115296]
[1760896888760,0.001,4000.8,4000.7,3.60842716]
[1760896889763,0.001,4000.8,4000.7,3.63342278]
[1760896890633,0.001,4000.8,4000.7,3.60842716]
[1760896890858,0.001,4000.8,4000.7,3.63342278]
[1760896892634,0.001,4000.8,4000.7,3.60842716]
[1760896893356,0.001,4000.8,4000.7,3.63342278]
[1760896893562,0.001,4000.8,4000.7,3.60842716]
[1760896904174,0.1649,4002.4,4000.7,3.60842716]
[1760896904491,1.21890852,4005.5,4000.7,3.60842716]
[1760896904492,0.12207176,4006.6,4004.4,1.58312294]
[1760896904647,0.099,4006.9,4006.0,4.68182555]
[1760896904847,0.099,4006.9,4006.7,2.49576447]
[1760896905051,0.099,4006.9,4006.7,3.204]
[1760896905306,0.228,4006.9,4006.7,3.204]
[1760896905652,0.099,4006.9,4006.7,3.204]
[1760896905898,0.09999999,4010.4,4006.8,4.91692555]
[1760896906096,9.67040451,4031.3,4009.3,2.49420098]
[1760896906097,0.12491237,4009.4,4009.3,2.49420098]
[1760896906308,0.234,4010.9,4010.0,0.6336]
[1760896906669,0.234,4010.9,4009.1,0.50141148]
[1760896906905,1.301,4010.8,4010.1,0.6336]
[1760896907078,3.144351,4010.6,4007.1,1.728]
[1760896907398,0.17484,4010.7,4008.1,0.74965796]
[1760896907399,9.6425,4010.4,4008.1,0.74965796]
[1760896907572,0.234,4008.2,4007.1,0.48772114]
[1760896907772,0.234,4007.2,4006.0,0.1199]
[1760896907983,0.234,4007.2,4005.8,0.75010313]
[1760896907984,0.4264,4007.1,4006.1,0.23016324]
[1760896908171,0.4264,4007.1,4005.9,0.6336]
[1760896908370,0.798,4007.0,4006.0,0.31299445]
[1760896908610,0.6604,4006.9,4005.3,2.49668194]
[1760896908760,0.6604,4006.9,4006.2,2.49609011]
[1760896908966,0.234,4006.9,4006.0,2.49620868]
[1760896909204,0.4264,4006.8,4006.1,2.49616336]
[1760896909500,0.234,4006.9,4005.3,1.728]
[1760896909790,0.234,4006.9,4005.1,0.4739]
[1760896909791,0.234,4006.9,4006.4,2.495951]
[1760896909991,3.173,4006.8,4006.4,2.49597184]
[1760896910193,3.173,4006.8,4005.4,0.69409]
[1760896910194,0.4264,4006.7,4006.3,2.49602516]
[1760896910380,0.4264,4006.6,4006.4,2.49599305]
[1760896910566,3.275,4006.5,4006.4,2.49599305]
[1760896911099,3.7014,4006.5,4006.2,2.49608374]
[1760896911397,3.7014,4006.5,4006.3,2.4960312]
[1760896911571,0.4264,4006.4,4006.3,2.4960312]
[1760896911775,0.4264,4006.4,4006.1,2.49614118]
[1760896911966,3.6994,4006.3,4006.1,2.49614118]
[1760896912167,3.273,4006.2,4006.1,2.49614118]
[1760896912385,3.6994,4006.2,4006.1,2.49614118]
[1760896912984,0.234,4006.9,4006.2,2.49608819]
[1760896913191,0.234,4006.9,4006.3,2.49604781]
[1760896913192,0.4264,4006.6,4006.3,2.49604781]
[1760896913395,3.272,4006.5,4006.3,2.49604781]
[1760896913575,3.272,4006.5,4006.2,2.49610841]
[1760896913774,0.4264,4006.4,4006.2,2.49610841]
[1760896914001,3.271,4006.3,4006.2,2.49610841]
[1760896914379,0.4264,4006.4,4006.2,2.49610841]
[1760896914602,3.27,4006.3,4006.2,2.49610841]
[1760896914973,3.6964,4006.3,4006.2,2.49610841]
[1760896916572,3.27,4006.3,4006.2,2.49613099]
[1760896917672,3.266,4006.3,4006.2,2.49613099]
[1760896917905,0.124,4006.8,4006.5,2.49591818]
[1760896918201,3.266,4006.7,4006.5,2.49591818]
[1760896918503,0.80714,4006.6,4006.5,2.49591818]
[1760896918716,0.80714,4006.6,4006.3,2.49601753]
[1760896918918,0.80714,4006.6,4006.4,2.49599138]
[1760896919490,0.80714,4006.6,4006.5,2.49594409]
[1760896920287,0.80714,4006.6,4006.2,2.49611605]
[1760896920288,0.80714,4006.6,4006.2,2.49607519]
[1760896920588,3.266,4006.7,4006.1,0.1248]
[1760896920589,0.88510227,4006.5,4006.1,0.1248]
[1760896920915,1.00910227,4006.5,4006.0,2.49620647]
[1760896921119,0.4468,4006.4,4006.1,2.4961813]
[1760896921416,0.4468,4006.4,4006.2,2.49611312]
[1760896921599,0.543714,4006.5,4006.3,2.4960605]
[1760896921798,0.124,4006.5,4006.3,2.4960605]
[1760896921995,3.261,4006.4,4006.3,2.4960605]
[1760896922191,0.124,4006.5,4006.4,2.49600638]
[1760896922393,3.8308,4006.5,4006.4,2.49600638]
[1760896923604,0.5708,4006.5,4006.3,2.49606317]
[1760896923790,3.7058,4006.4,4006.3,2.49606317]
[1760896924517,4.08778,4006.4,4005.9,0.1248]
[1760896924722,4.08778,4006.4,4005.2,2.49669657]
[1760896924723,0.1248,4005.9,4005.1,2.49680618]
[1760896924895,3.9388,4005.8,4005.3,2.49663592]
[1760896925222,0.1248,4005.5,4005.3,2.49663592]
[1760896925409,0.1248,4005.5,4005.0,2.4968387]
[1760896925729,0.4445,4005.4,4005.3,2.49665796]
[1760896926522,0.4445,4005.4,4005.1,2.49681655]
[1760896926724,0.444,4005.3,4005.2,2.49671749]
[1760896927526,0.444,4005.3,4004.9,2.49690016]
[1760896927825,0.444,4005.2,4003.9,1.11576324]
[1760896927990,3.7076,4005.1,4003.9,0.73013926]
[1760896928197,3.255,4005.0,4003.9,0.73013926]
[1760896928519,3.255,4005.0,4003.9,1.9631]
[1760896928720,0.2275,4004.9,4004.8,0.002]
[1760896928899,0.6779,4004.9,4004.8,0.002]
[1760896929328,3.9319,4004.9,4004.8,0.002]
[1760896929494,4.32509,4004.9,4004.8,0.002]
[1760896929702,1.07109,4004.9,4004.8,2.49900359]
[1760896930005,1.687,4005.6,4004.8,0.002]
[1760896930306,1.687,4005.6,4005.3,2.49668956]
[1760896930524,3.253,4005.5,4005.3,2.49668956]
[1760896930730,3.253,4005.5,4004.8,0.002]
[1760896930731,0.46678827,4005.4,4004.8,0.002]
[1760896930896,0.232,4004.9,4004.8,0.002]
[1760896931095,3.486,4004.9,4004.8,0.002]
[1760896931302,3.9249,4004.9,4004.8,0.002]
[1760896931596,4.31739,4004.9,4004.8,0.002]
[1760896932009,1.687,4005.6,4004.8,0.002]
[1760896932214,0.6748,4004.9,4004.8,0.002]
[1760896932420,0.2359,4004.9,4004.8,0.002]
[1760896932622,3.256,4004.9,4004.8,2.49898328]
[1760896933029,0.4389,4005.5,4004.8,2.49898243]
[1760896933225,3.256,4005.4,4005.0,2.49682405]
[1760896933429,3.6949,4005.4,4005.0,2.49682405]
[1760896933629,0.4389,4005.3,4004.9,2.49693727]
[1760896933809,0.4389,4005.2,4004.8,0.002]
[1760896934129,3.257,4005.1,4005.0,2.49685953]
[1760896934320,0.4389,4005.3,4005.0,2.49685953]
[1760896934522,3.256,4005.2,4004.8,0.002]
[1760896934713,0.2359,4004.9,4004.8,0.002]
[1760896935127,0.4389,4005.1,4004.8,0.002]
[1760896935432,0.4389,4005.1,4004.8,2.49899234]
[1760896935729,0.4389,4005.7,4004.8,0.002]
[1760896935930,0.2363,4005.8,4004.9,2.49689085]
[1760896936236,0.2363,4005.8,4005.2,2.4967482]
[1760896936398,3.255,4005.7,4005.2,2.4967482]
[1760896936603,0.4389,4005.6,4005.2,2.4967482]
[1760896937019,3.255,4005.5,4005.3,2.49666414]
[1760896937225,3.254,4005.4,4005.3,2.49666414]
[1760896937634,3.254,4005.4,4004.8,0.1268]
[1760896937635,3.254,4005.4,4004.9,2.49689008]
[1760896937806,3.254,4005.4,4005.0,0.2327651]
[1760896938004,3.254,4005.4,4005.1,0.2327651]
[1760896938204,3.254,4005.4,4005.0,2.49686935]
[1760896938504,3.254,4005.4,4005.1,0.23276542]
[1760896938698,3.254,4005.4,4005.0,2.49686935]
[1760896938935,3.254,4005.4,4005.1,0.23278503]
[1760896939241,3.254,4005.4,4005.0,2.49686935]
[1760896939440,3.254,4005.4,4005.1,0.23279757]
[1760896939607,3.254,4005.4,4005.0,2.49686935]
[1760896939808,3.254,4005.4,4005.1,0.23279756]
[1760896940018,3.254,4005.4,4005.0,2.49686935]
[1760896940340,0.1248,4005.5,4005.2,2.49673216]
[1760896940541,3.251,4005.4,4005.1,2.49681477]
[1760896940726,3.251,4005.4,4005.2,0.23290433]
[1760896941053,3.251,4005.4,4005.1,2.49681477]
[1760896941334,3.251,4005.4,4005.2,0.23290436]
[1760896941535,3.251,4005.4,4005.1,2.49681477]
[1760896941738,3.251,4005.4,4005.2,0.23301952]
[1760896941942,3.251,4005.4,4005.1,2.49681477]
[1760896942117,3.251,4005.4,4005.2,0.23301954]
[1760896942318,3.251,4005.4,4005.1,2.49681477]
[1760896942630,3.251,4005.4,4005.2,0.23305346]
[1760896942943,3.251,4005.4,4005.1,2.49681477]
[1760896943140,3.251,4005.4,4005.2,0.23305345]
[1760896943339,3.251,4005.4,4005.3,0.23309214]
[1760896943641,3.6899,4005.4,4005.3,0.23309214]
[1760896945067,3.70848827,4005.4,4005.3,0.23309214]
[1760896945247,3.70848827,4005.4,4004.8,0.002]
[1760896945446,0.1248,4005.2,4004.9,0.23318391]
[1760896945664,0.58228827,4005.2,4005.0,0.23318391]
[1760896945824,0.58228827,4005.2,4004.8,0.002]
[1760896946232,0.58228827,4005.2,4005.1,0.002]
[1760896946931,0.5637,4005.2,4005.1,0.002]
[1760896948740,3.8077,4005.2,4005.1,0.002]
[1760896949249,0.5637,4005.2,4005.1,0.002]
[1760896949454,3.8067,4005.2,4005.1,0.002]
[1760896951364,4.29362525,4005.2,4005.1,0.002]
[1760896952352,1.05062525,4005.2,4005.1,0.002]
[1760896952594,0.5637,4005.2,4005.1,0.002]
[1760896952753,3.8027,4005.2,4005.1,0.002]
[1760896953153,0.5637,4005.2,4005.1,0.002]
[1760896953328,3.8027,4005.2,4005.1,0.002]
[1760896956940,0.2363,4005.8,4005.1,0.002]
[1760896957140,2.49654345,4005.6,4005.1,0.002]
[1760896957345,0.64020435,4005.5,4005.1,0.002]
[1760896957545,1.07440435,4005.5,4005.1,0.002]
[1760896958355,0.4342,4005.4,4005.1,0.002]
[1760896958558,3.235,4005.3,4005.1,0.002]
[1760896958846,3.6692,4005.3,4005.1,0.002]
[1760896959047,4.34979199,4005.3,4005.1,0.002]
[1760896960267,3.91559199,4005.3,4005.1,0.002]
[1760896960474,3.235,4005.3,4005.1,0.002]
[1760896964152,0.4342,4005.2,4005.1,0.002]
[1760896964678,3.235,4005.3,4005.1,0.002]
[1760896966180,3.228,4005.2,4005.1,0.002]
[1760896969158,3.68078827,4005.2,4005.1,0.002]
[1760896969355,4.29853016,4005.2,4005.1,0.002]
[1760896971085,6.7766961,4005.2,4005.1,0.002]
[1760896971269,4.27994189,4005.2,4005.1,0.002]
[1760896972189,3.84174189,4005.2,4005.1,0.002]
[1760896974274,4.27594189,4005.2,4005.1,0.002]
[1760896977493,15.44420423,4005.2,4005.1,0.002]
[1760896977708,3.13054124,4004.9,4004.8,0.002]
[1760896977909,12.20007337,4004.9,4004.8,0.002]
[1760896978403,9.41227337,4004.9,4004.8,0.002]
[1760896978702,14.32127337,4004.9,4004.8,0.002]
[1760896979208,18.31092837,4004.9,4004.8,0.002]
[1760896979507,19.48787231,4004.9,4004.8,0.002]
[1760896980290,21.66264131,4004.9,4004.8,0.002]
[1760896981309,16.82838731,4004.9,4004.8,0.002]
[1760896981513,21.67807131,4004.9,4004.8,0.002]
[1760896982211,19.68156931,4004.9,4004.8,0.002]
[1760896982398,19.66364331,4004.9,4004.8,0.002]
[1760896982800,4.85860359,4004.8,4004.7,1e-08]
[1760896983011,24.06047693,4004.8,4004.7,1e-08]
[1760896983408,24.70337693,4004.8,4004.7,1e-08]
[1760896984276,28.59850906,4004.8,4004.7,1e-08]
[1760896984501,23.16031393,4004.8,4004.7,1e-08]
[1760896984907,20.14824493,4004.8,4004.7,1e-08]
[1760896985308,24.04337706,4004.8,4004.7,1e-08]
[1760896985517,24.04838106,4004.8,4004.7,1e-08]
[1760896985730,22.81088106,4004.8,4004.7,1e-08]
[1760896986526,18.91574893,4004.8,4004.7,1e-08]
[1760896989598,10.68166393,4004.8,4004.7,1e-08]
[1760896989800,15.58466393,4004.8,4004.7,1e-08]
[1760896990157,4.11370293,4004.8,4004.7,1e-08]
[1760896990427,3.89513213,4005.3,4004.7,0.43350001]
[1760896990608,2.49693737,4005.0,4004.7,0.43350001]
[1760896990813,3.215,4004.9,4004.8,0.4335]
[1760896991110,0.1248,4004.8,4004.7,1e-08]
[1760896991295,4.34980359,4004.8,4004.7,1e-08]
[1760896991484,4.34980359,4004.8,4004.7,0.44920001]
[1760896991690,7.56480359,4004.8,4004.7,0.44920001]
[1760896992714,0.1248,4004.8,4004.7,0.44920001]
[1760896992915,2.4967654,4005.2,4004.7,0.44920001]
[1760896993128,2.4966849,4005.4,4005.1,0.1199]
[1760896993331,1.728,4005.2,4005.1,0.1199]
[1760896993825,4.943,4005.2,4005.1,0.1199]
[1760896994043,4.943,4005.2,4005.1,0.5691]
[1760896994247,4.943,4005.2,4004.7,1e-08]
[1760896994248,2.49700359,4004.8,4004.7,1e-08]
[1760896994447,11.96873572,4004.8,4004.7,1e-08]
[1760896994626,16.05915872,4004.8,4004.7,1e-08]
[1760896994821,12.42393572,4004.8,4004.7,1e-08]
[1760896995029,4.85860359,4004.8,4004.7,1e-08]
[1760896995261,12.72667397,4004.8,4004.7,1e-08]
[1760896995618,13.18187397,4004.8,4004.7,1e-08]
[1760896996932,13.18087397,4004.8,4004.7,1e-08]
[1760896997325,12.05153297,4004.8,4004.7,1e-08]
[1760896997528,12.72467397,4004.8,4004.7,1e-08]
[1760896998151,13.17987397,4004.8,4004.7,1e-08]
[1760897000218,12.72467397,4004.8,4004.7,1e-08]
[1760897000417,13.17987397,4004.8,4004.7,1e-08]
[1760897001414,12.72467397,4004.8,4004.7,1e-08]
[1760897002322,12.72567397,4004.8,4004.7,1e-08]
[1760897003053,13.17887397,4004.8,4004.7,1e-08]
[1760897006564,9.51167397,4004.8,4004.7,1e-08]
[1760897006772,12.72067397,4004.8,4004.7,1e-08]
[1760897008834,9.51167397,4004.8,4004.7,1e-08]
[1760897009035,12.71967397,4004.8,4004.7,1e-08]
[1760897009253,0.001,4004.8,4004.7,1e-08]
[1760897009558,3.208,4004.8,4004.7,0.44920001]
[1760897009850,4.936,4004.8,4004.7,0.44920001]
[1760897010954,4.935,4004.8,4004.7,0.44920001]
[1760897011318,1.729,4004.8,4004.7,0.44920001]
[1760897011519,4.22600359,4004.8,4004.7,0.44920001]
[1760897011720,7.43100359,4004.8,4004.7,1e-08]
[1760897012126,7.43100359,4004.8,4004.7,0.44920001]
[1760897012334,4.934,4004.8,4004.7,0.44920001]
[1760897012533,1.729,4004.8,4004.7,0.44920001]
[1760897012829,4.934,4004.8,4004.7,0.44920001]
[1760897013427,7.43100359,4004.8,4004.7,1e-08]
[1760897013852,1.729,4004.8,4004.7,1e-08]
[1760897014154,4.933,4004.8,4004.7,0.44920001]
[1760897014356,7.43000359,4004.8,4004.7,0.44920001]
[1760897016161,4.932,4004.8,4004.7,0.44920001]
[1760897016733,7.42900359,4004.8,4004.7,0.44920001]
[1760897016937,4.22600359,4004.8,4004.7,0.44920001]
[1760897017138,7.42800359,4004.8,4004.7,0.44920001]
[1760897017561,7.42700359,4004.8,4004.7,1e-08]
[1760897018152,1.729,4004.8,4004.7,1e-08]
[1760897018562,1.729,4004.8,4004.7,0.44060001]
[1760897018767,4.93,4004.8,4004.7,0.44060001]
[1760897019675,4.22600359,4004.8,4004.7,0.44060001]
[1760897019862,7.42700359,4004.8,4004.7,0.44060001]
[1760897020876,8.41938628,4004.8,4004.7,1e-08]
[1760897023372,7.42700359,4004.8,4004.7,1e-08]
[1760897025074,4.22600359,4004.8,4004.7,1e-08]
[1760897025274,7.42300359,4004.8,4004.7,1e-08]
[1760897026595,8.51370359,4004.8,4004.7,1e-08]
[1760897036910,8.51370359,4004.8,4004.7,0.50000001]
[1760897037114,10.11397996,4004.8,4004.7,0.50000001]
[1760897041586,9.64887996,4004.8,4004.7,0.50000001]
[1760897042814,14.78083279,4004.8,4004.7,0.50000001]
[1760897045107,11.59183279,4004.8,4004.7,0.50000001]
[1760897045302,14.77983279,4004.8,4004.7,0.50000001]
[1760897046928,14.77983279,4004.8,4004.7,1e-08]
[1760897046929,33.83738979,4004.8,4004.7,1e-08]
[1760897047230,28.67782866,4004.5,4004.4,1e-08]
[1760897047401,33.59582866,4004.5,4004.4,1e-08]
[1760897047606,34.03212866,4004.5,4004.4,1e-08]
[1760897047802,34.13228477,4004.5,4004.4,1e-08]
[1760897048002,14.25399487,4003.9,4003.8,1e-08]
[1760897048227,19.66594223,4003.9,4003.8,1e-08]
[1760897048398,20.10224223,4003.9,4003.8,1e-08]
[1760897050627,20.14576937,4003.9,4003.8,1e-08]
[1760897051003,14.08339537,4003.9,4003.8,1e-08]
[1760897052223,14.55169537,4003.9,4003.8,1e-08]
[1760897052534,10.29179537,4003.9,4003.8,1e-08]
[1760897052737,2.49756487,4003.9,4003.8,0.43510001]
[1760897052903,5.68756487,4003.9,4003.8,0.43510001]
[1760897053100,8.04916487,4003.9,4003.8,0.43510001]
[1760897053302,4.85916487,4003.9,4003.8,0.43510001]
[1760897053634,13.33726214,4003.9,4003.8,1e-08]
[1760897053835,15.44749731,4003.9,4003.8,1e-08]
[1760897054623,17.97324031,4003.9,4003.8,1e-08]
[1760897054851,14.78324031,4003.9,4003.8,1e-08]
[1760897055047,14.78554831,4003.9,4003.8,1e-08]
[1760897055351,13.04558631,4003.9,4003.8,1e-08]
[1760897055524,17.72143914,4003.9,4003.8,1e-08]
[1760897055928,35.6516516,4003.9,4003.8,1e-08]
[1760897056127,35.6516516,4003.9,4003.3,0.002]
[1760897056128,31.0202628,4003.4,4003.3,0.002]
[1760897056354,40.40140457,4003.4,4003.3,0.002]
[1760897056535,40.86300457,4003.4,4003.3,0.002]
[1760897056734,36.84548457,4003.4,4003.3,0.002]
[1760897056933,10.55759074,4003.4,4003.3,0.002]
[1760897057249,12.68558574,4003.4,4003.3,0.002]
[1760897057445,7.36659074,4003.4,4003.3,0.002]
[1760897057788,8.1703768,4003.4,4003.3,0.002]
[1760897057970,11.8380388,4003.4,4003.3,0.002]
[1760897058168,8.1703768,4003.4,4003.3,0.002]
[1760897058367,14.3947298,4003.4,4003.3,0.002]
[1760897058858,14.73827426,4003.4,4003.3,0.002]
[1760897059062,16.92936604,4003.4,4003.3,0.002]